Cogmind - Beta 16 @@@ ROGUE MODE // 2026.01.08 @ 03:56:01 Player: Rocket Result: Destroyed by Y-45 Defender with Beam Rifle Performance ------------- Evolutions (2) 1000 Regions Visited (4) 800 Robots Destroyed (63) 315 Value Destroyed (1982) 1982 Prototype IDs (0) 0 Alien Tech Used (0) 0 Bonus (327) 327 TOTAL SCORE: 4424 Bonus ------- High Alert Combat Kills 127 Entered Garrisons 200 Cogmind --------- Core Integrity 0/550 Matter 18/300 Energy 100/100 System Corruption 0% Temperature Cool (9) Movement Core (50) Location -8/Garrison Parts ------- > --- POWER (1) -------- (None) > --- PROPULSION (2) --- (None) > --- UTILITY (6) ------ (None) > --- WEAPON (2) ------- Spear > --- INVENTORY (5) ---- Improved Deuterium Engine Improved Grenade Launcher Improved Grenade Launcher Peak State ------------ > --- POWER ------------ Light Angular Momentum Engine > --- PROPULSION ------- Advanced Treads Advanced Treads > --- UTILITY ---------- Heat Sink Large Storage Unit Improved Terrain Scanner Terrain Scan Processor Hacking Suite System Shield > --- WEAPON ----------- Improved Grenade Launcher Spear > --- INVENTORY -------- Improved Deuterium Engine Improved Deuterium Engine Improved Deuterium Engine Improved Deuterium Engine Wheel Armored Wheel Armored Wheel Compact Battery Core Shielding Shock Rifle Particle Gun Improved Grenade Launcher Improved Grenade Launcher Spear Spear [Rating: 35] Favorites ----------- Power Light Ion Engine Engine Light Ion Engine Propulsion Armored Wheel Treads Advanced Treads Wheel Armored Wheel Utility Small Storage Unit Device Improved Terrain Scanner Storage Small Storage Unit Processor Terrain Scan Processor Hackware Hacking Suite Protection Light Armor Plating Weapon Medium Laser Energy Gun Medium Laser Ballistic Gun Shotgun Ballistic Cannon Assault Cannon Launcher Improved Grenade Launcher Piercing Weapon Spear Build | -11 -10 -9 -8 -8 ------- Run | Yrd Mat Mat Mat Gar Slots Evolved 4 | . . 2 2 . Power . | . . . . . Propulsion . | . . . . . Utility 4 | . . 2 2 . Weapon . | . . . . . Parts Attached 56 | 7 5 22 14 8 Power 7 | 1 . 3 2 1 Engine 7 | 1 . 3 2 1 Core . | . . . . . Reactor . | . . . . . Propulsion 12 | 2 1 5 4 . Treads 4 | . . 2 2 . Leg . | . . . . . Wheel 8 | 2 1 3 2 . Hover . | . . . . . Flight . | . . . . . Utility 15 | 2 1 6 4 2 Device 5 | 1 1 2 1 . Storage 3 | 1 . 1 1 . Processor 1 | . . 1 . . Hackware 2 | . . . 2 . Protection 4 | . . 2 . 2 Artifact . | . . . . . Weapon 22 | 2 3 8 4 5 Energy Gun 12 | 2 3 5 . 2 Energy Cannon . | . . . . . Ballistic Gun 3 | . . 2 . 1 Ballistic Cannon 1 | . . . . 1 Launcher 4 | . . 1 2 1 Special Weapon . | . . . . . Impact Weapon . | . . . . . Slashing Weapon . | . . . . . Piercing Weapon 2 | . . . 2 . Special Melee Weapon . | . . . . . Unidentified Prototypes . | . . . . . Corrupted Parts 1 | . . 1 . . System Corruption 1 | . . 1 . . Parts Lost 19 | . . 7 1 11 Power 3 | . . 2 . 1 Propulsion 4 | . . 1 . 3 Utility 6 | . . 3 . 3 Weapon 6 | . . 1 1 4 Highest Loss Streak 8 | . . 2 1 8 To Critical Strikes . | . . . . . Average Backups 9 | 2 6 7 14 13 Power 1 | . . . 3 2 Propulsion 2 | 1 3 3 3 . Utility 1 | . 1 . 1 2 Weapon 4 | . 1 2 6 7 Tool/Special . | . . . . . Unused Backups 15 | . 1 6 3 5 Power 2 | . . . . 2 Propulsion 4 | . . 3 1 . Utility 3 | . 1 . 1 1 Weapon 5 | . . 2 1 2 Tool/Special 1 | . . 1 . . Average Slot Usage (%) 95 | . 99 94 97 87 Engine 10 | . 14 9 9 7 Treads 4 | . . 6 . 15 Wheel 16 | . 28 15 17 . Device 12 | . 14 14 16 1 Storage 13 | . 14 11 21 7 Processor 6 | . . 10 9 7 Hackware 3 | . . . 5 14 Protection 3 | . . 4 . 14 Energy Gun 13 | . 27 17 2 3 Ballistic Gun 1 | . . 3 . 1 Launcher 2 | . . . 3 5 Piercing Weapon 4 | . . . 12 4 Peak Build Rating 35 | 9 9 21 35 35 Average Rating 19 | 5 8 16 29 27 On Entrance 14 | . 9 8 20 35 Avg Prop Armor Cover (%) . | . . . . . Naked Turns 9 | . . . . 9 Heaviest Build 49 | 13 13 27 49 44 Greatest Support 44 | 20 20 44 44 44 Greatest Overweight (x) 2 | . . 1 2 1 Average Overweight (x) . | . . . 1 . Largest Inventory Capacity 15 | 8 8 8 15 15 Average Capacity 10 | 7 8 8 14 13 Most Carried 15 | 4 8 8 15 15 Average Carried 9 | 2 6 7 14 13 Final Capacity 15 | 8 8 8 15 5 Final Carried 15 | 4 8 8 15 3 Class Distribution -------------------- 73% | Mutant 22% | Hacker-Mutant 4% | Scavenger-Mutant Dominant Class ---------------- Mutant | -10/Materials Mutant | -9/Materials Mutant | -8/Materials Hacker-Mutant | -8/Garrison Resources | -11 -10 -9 -8 -8 ----------- Run | Yrd Mat Mat Mat Gar Matter Collected 1046 | 270 32 484 200 60 Remotely . | . . . . . Salvage Created 1937 | 157 283 664 398 435 Parts 117 | 7 10 41 22 37 Haulers Intercepted 1 | . . . 1 . Recyclers Shooed 3 | . 2 1 . . Parts Field Recycled . | . . . . . Retrieved Matter . | . . . . . Parts Self-Destructed . | . . . . . Prevented . | . . . . . Parts Restored . | . . . . . Kills | -11 -10 -9 -8 -8 ------- Run | Yrd Mat Mat Mat Gar Combat Hostiles Destroyed 47 | . 5 15 9 18 Melee 6 | . . . 5 1 Guns 24 | . 5 15 . 4 AOE 17 | . . . 4 13 Classes Destroyed 13 | 2 2 5 3 1 Worker 1 | . . 1 . . Builder 4 | . . . 4 . Tunneler 3 | 3 . . . . Hauler 1 | . . . 1 . Recycler 2 | 1 1 . . . Operator 1 | . . 1 . . Watcher 4 | . 1 1 2 . Swarmer 13 | . . 4 3 6 Grunt 24 | . 5 5 3 11 Brawler 1 | . . 1 . . Protector 1 | . . . . 1 Sentry 6 | . . 5 1 . Hunter 2 | . . . 2 . Best Kill Streak 6 | 2 2 4 5 6 Combat Bots Only 6 | . 1 4 3 6 Max Kills in Single Turn 4 | 1 1 2 3 4 Gunslinging . | . . . . . Exploded 4 | . . . 2 4 Melee 1 | . . . 1 1 Uniques/NPCs Destroyed . | . . . . . Combat | -11 -10 -9 -8 -8 -------- Run | Yrd Mat Mat Mat Gar Hostile Shots Fired 267 | . 24 98 37 108 Missed 76 | . 7 30 10 29 Hits 191 | . 17 68 27 79 Projectile 191 | . 17 68 27 79 AOE 12 | . . . . 12 Critical Strikes 7 | . . 2 3 2 Damage Taken 3049 | . 208 853 428 1560 Core 735 | . 11 170 87 467 Absorbed by Shields . | . . . . . Redirected to Shielding 38 | . . . . 38 Core Remaining (%) 84 | 100 95 57 . . Volleys Fired 174 | 14 52 70 7 31 Largest 2 | 2 2 2 2 2 Hottest 130 | 100 100 100 100 130 Shots Fired 305 | 28 92 131 8 46 Gun 286 | 28 92 128 2 36 Cannon . | . . . . . Launcher 19 | . . 3 6 10 Special . | . . . . . Kinetic 28 | . . 17 . 11 Thermal 196 | 28 91 55 . 22 Explosive 19 | . . 3 6 10 Electromagnetic 62 | . 1 56 2 3 Robot Hit Streak 12 | 8 5 12 1 6 Robot Miss Streak 6 | 1 6 5 3 4 Penetration Max . | . . . . . Secondary Targets 1 | . . . . 1 Max Gunslinging Chain 1 | . . . . 1 Shots Hit Robots 186 | 19 45 80 13 29 Core Hits 105 | 5 17 29 22 32 Critical Kills . | . . . . . Critical Parts Destroyed . | . . . . . Critical Strikes 14 | 1 4 5 3 1 Burn 9 | 1 4 4 . . Corrupt 1 | . . 1 . . Impale 4 | . . . 3 1 Melee Attacks 33 | . . . 20 13 Impact . | . . . . . Slashing . | . . . . . Piercing 33 | . . . 20 13 Sneak Attacks . | . . . . . Combat Hostiles . | . . . . . Follow-up Attacks . | . . . . . Damage Inflicted 4467 | 238 589 1171 855 1614 Guns 2204 | 238 589 1063 . 314 Cannons . | . . . . . Explosions 1866 | . . 108 527 1231 Melee 388 | . . . 328 60 Ramming 9 | . . . . 9 Kinetic 251 | . . 158 . 93 Thermal 1635 | 238 577 615 . 205 Explosive 1758 | . . . 527 1231 Electromagnetic 426 | . 12 398 . 16 Impact . | . . . . . Slashing . | . . . . . Piercing 388 | . . . 328 60 Highest Corruption 3 | . . 3 . . Average Corruption 2 | . . 2 . . Corruption Purged . | . . . . . Corruption Blocked . | . . . . . Effects 13 | . . 13 . . Message Errors 3 | . . 3 . . Matter Fused 4 | . . 4 . . Heat Flow Errors 3 | . . 3 . . Parts Rejected 1 | . . 1 . . Data Loss (minor) 1 | . . 1 . . Alerts 1 | . . 1 . . Overload Shots . | . . . . . Overflow Damage 119 | . . . 71 48 Projectiles . | . . . . . Explosions 71 | . . . 23 48 Melee 48 | . . . 48 . Knockbacks . | . . . . . Impact . | . . . . . Kinetic . | . . . . . Secondary . | . . . . . Self-Inflicted Damage 13 | . . . . 13 Shots 1 | . . . . 1 Rammed 6 | . . . . 6 Targets Rammed 6 | . . . . 6 Kicked . | . . . . . Crushed . | . . . . . Highest Temperature 435 | 212 435 314 . 187 Average Temperature 92 | 86 132 56 . 75 Received Heat Transfer 1164 | . 120 297 189 558 Effects 7 | . 7 . . . Shutdowns 1 | . 1 . . . Energy Bleed 2 | . 2 . . . Matter Decay 2 | . 2 . . . Short Circuit 1 | . 1 . . . Damage (minor) 1 | . 1 . . . Siege Activations . | . . . . . Martial Activations . | . . . . . Shielding Activations . | . . . . . Robots Disrupted . | . . . . . Combat Hostiles . | . . . . . Robots Corrupted . | . . . . . Combat Hostiles . | . . . . . Parts Fried . | . . . . . Impact Corruptions . | . . . . . Robots Melted . | . . . . . Combat Hostiles . | . . . . . Parts Melted 9 | 3 2 4 . . Heat Transferred 4973 | 777 1998 1742 . 456 Parts Sabotaged . | . . . . . Parts Stolen . | . . . . . Parts Stripped . | . . . . . Power Chain Reactions 2 | . . 2 . . Alert | -11 -10 -9 -8 -8 ------- Run | Yrd Mat Mat Mat Gar Maximum Alert Level 2 | . . . 1 2 Low Security (%) 85 | 100 100 100 99 14 Level 1 5 | . . . . 33 Level 2 8 | . . . . 51 Level 3 . | . . . . . Level 4 . | . . . . . Level 5 . | . . . . . High Security . | . . . . . Max Security . | . . . . . Peak Influence 611 | 10 80 169 205 611 Initial 106 | . . 1 55 106 Average 102 | 1 16 56 81 375 Influence Increases 1644 | 20 172 523 349 580 Destroy 0b10 Robot/C 920 | . 100 300 180 340 Destroy 0b10 Robot/NC 85 | 20 10 15 35 5 Destroy Leader 190 | . 32 92 56 10 Successful Hack 28 | . . 7 9 12 Disable Machine 45 | . . 15 15 15 Anti-Garrison Action 50 | . . . . 50 Destroy Structure 101 | . . 19 39 43 Partial Spotted 30 | . . . . 30 Lose Combat Pursuer 195 | . 30 75 15 75 Influence Decreases 1068 | 20 167 397 316 168 Entered New Map 138 | . . 4 76 58 Time Decay 740 | 20 167 323 230 . Lost Part 190 | . . 70 10 110 Squads Dispatched 7 | . 3 3 1 . Investigation 1 | . . 1 . . Extermination . | . . . . . Reinforcement 6 | . 3 2 1 . Assault . | . . . . . Garrison . | . . . . . Intercept . | . . . . . Searches Triggered . | . . . . . Construction Impeded . | . . . . . Haulers Reinforced . | . . . . . Active Scanning Responses . | . . . . . Cargo Convoy Interrupts . | . . . . . Stealth | -11 -10 -9 -8 -8 --------- Run | Yrd Mat Mat Mat Gar Distress Signals 9 | . 2 6 1 . Communications Jammed . | . . . . . Distress Signals . | . . . . . Times Spotted 81 | . 14 29 13 25 Peak Tracking Total 7 | . 3 6 3 7 Tactical Retreats 9 | . 1 5 1 2 Traps | -11 -10 -9 -8 -8 ------- Run | Yrd Mat Mat Mat Gar Traps Triggered 2 | . . 2 . . Indirectly . | . . . . . Trap Hack Attempts . | . . . . . Triggered . | . . . . . Disarmed . | . . . . . Reprogrammed . | . . . . . Reused . | . . . . . Traps Extracted . | . . . . . Installed . | . . . . . Triggered . | . . . . . Machines | -11 -10 -9 -8 -8 ---------- Run | Yrd Mat Mat Mat Gar Machines Disabled 4 | . . 1 1 2 Max in Single Turn 1 | . . 1 1 1 Garrison Relay 1 | . . . . 1 Machines Repaired . | . . . . . Machines Dismantled . | . . . . . Machines Sabotaged . | . . . . . Overloaded Fab Kills . | . . . . . Hacking | -11 -10 -9 -8 -8 --------- Run | Yrd Mat Mat Mat Gar Machines Accessed 7 | . 1 2 3 1 Terminals 6 | . 1 2 2 1 Fabricators . | . . . . . Repair Stations . | . . . . . Recycling Units . | . . . . . Scanalyzers . | . . . . . Garrison Access 1 | . . . 1 . Total Hacks 15 | . 2 5 7 1 Successful 5 | . . 1 3 1 Failed 10 | . 2 4 4 . Catastrophic 7 | . 2 2 3 . Database Lockouts . | . . . . . Manual 13 | . 2 5 6 . Terminals 14 | . 2 5 6 1 Fabricators . | . . . . . Repair Stations . | . . . . . Recycling Units . | . . . . . Scanalyzers . | . . . . . Garrison Access 1 | . . . 1 . Terminal Hacks 4 | . . 1 2 1 Part Schematic 1 | . . 1 . . Garrison Index 1 | . . . 1 . Investigation Status 1 | . . . 1 . Patrol Navigation 1 | . . . . 1 Fabricator Hacks . | . . . . . Repair Station Hacks . | . . . . . Recycling Unit Hacks . | . . . . . Scanalyzer . | . . . . . Garrison Access Hacks 1 | . . . 1 . Unlock Access 1 | . . . 1 . Unauthorized Hacks . | . . . . . Terminals . | . . . . . Fabricators . | . . . . . Repair Stations . | . . . . . Recycling Units . | . . . . . Scanalyzers . | . . . . . Garrison Access . | . . . . . Data Cores Recovered 1 | . . 1 . . Used . | . . . . . Hacking Detections 6 | . 1 2 3 . Full Trace Events 2 | . 1 1 . . Feedback Events . | . . . . . Feedback Blocked . | . . . . . Robot Schematics Acquired . | . . . . . Robots Built . | . . . . . Authchips . | . . . . . Time . | . . . . . Total Robot Build Rating . | . . . . . Part Schematics Acquired 1 | . . 1 . . Parts Built . | . . . . . Authchips . | . . . . . Time . | . . . . . Total Part Build Rating . | . . . . . Part Studies Acquired . | . . . . . Parts Repaired . | . . . . . Time . | . . . . . Parts Recycled . | . . . . . Recycled Matter . | . . . . . Retrieved Matter . | . . . . . Retrieved Components . | . . . . . Parts Scanalyzed . | . . . . . Part Schematics Acquired . | . . . . . Parts Damaged . | . . . . . Bothacking | -11 -10 -9 -8 -8 ------------ Run | Yrd Mat Mat Mat Gar Used RIF Installer . | . . . . . Robots Hacked . | . . . . . Non-combat . | . . . . . Combat . | . . . . . Robot Hacks Applied . | . . . . . Relay Couplers Released 4 | . . . . 4 Machine Destruction 4 | . . . . 4 Fabnet Peak Effective % . | . . . . . Robots Rewired . | . . . . . Allies Hacked . | . . . . . Hacks Repelled . | . . . . . Allies | -11 -10 -9 -8 -8 -------- Run | Yrd Mat Mat Mat Gar Total Allies . | . . . . . Largest Group . | . . . . . Highest-Rated Group . | . . . . . Highest-Rated Ally . | . . . . . Total Orders . | . . . . . Ally Attacks . | . . . . . Total Damage . | . . . . . Kills . | . . . . . Allies Corrupted . | . . . . . Allies Melted . | . . . . . Intel | -11 -10 -9 -8 -8 ------- Run | Yrd Mat Mat Mat Gar Active Infowar (turns) 1669 | 15 575 470 606 3 Terrain 1669 | 15 575 470 606 3 Robot Analysis Total . | . . . . . Derelict Logs Recovered . | . . . . . Drone Launches . | . . . . . Drone Recoveries . | . . . . . Exploration | -11 -10 -9 -8 -8 ------------- Run | Yrd Mat Mat Mat Gar Turns Passed 2782 | 113 693 802 720 454 Spaces Moved 1515 | 62 375 487 389 202 Core 16 | 1 . . . 15 Treads 313 | . . 132 18 163 Legs . | . . . . . Wheels 1186 | 61 375 355 371 24 Hover . | . . . . . Flight . | . . . . . Fastest Speed 50 | 50 80 80 90 50 Average Speed 101 | 79 80 103 108 131 Slowest Speed 225 | 80 80 225 145 225 Overloaded Moves . | . . . . . Propulsion Burnouts . | . . . . . Robots Hopped . | . . . . . Potential Cave-ins . | . . . . . Cave-ins Triggered . | . . . . . Exploration Rate (%) 33 | 5 68 34 31 27 Regions Visited 4 Branch Regions . Pre-discovered Areas . | . . . . . Known Exits Taken 1 | . . . 1 . Unknown Exits Taken 3 | 1 1 1 . . Scrap Searched . | . . . . . Spaces Dug 9 | . . 6 3 . Terrain Destroyed 99 | . . 21 39 39 Melee 3 | . . . 3 . Projectile . | . . . . . AOE 96 | . . 21 36 39 Terrain Rammed . | . . . . . Walls Destroyed . | . . . . . Machines Disabled . | . . . . . Actions | -11 -10 -9 -8 -8 --------- Run | Yrd Mat Mat Mat Gar Total 2399 | 93 675 663 647 321 Wait 515 | 7 234 45 183 46 Move 1511 | 61 374 486 388 202 Hop . | . . . . . Pick Up 47 | 4 6 16 18 3 Fast Attach 17 | 7 . 8 2 . Attach 17 | . 2 4 3 8 Detach . | . . . . . Swap 41 | . 4 13 14 10 Drop 38 | . 3 21 12 2 Fire 174 | 14 52 70 7 31 Melee 33 | . . . 20 13 Ram 6 | . . . . 6 Kick . | . . . . . Crush . | . . . . . Escape Stasis . | . . . . . Rewire . | . . . . . Trap . | . . . . . Miscellaneous . | . . . . . Route ------- -11/Scrapyard -10/Materials (discovered 3 exits: *Mat x2 / [*Min]) -9/Materials -8/Materials (discovered 2 exits: [Fac] / Gar) -8/Garrison History --------- Turn | Location | Event 38 | -11/Scrapyard | Discovered new exit (range 15) 114 | -11/Scrapyard | Entered Materials 268 | -10/Materials | Discovered new exit (range 14) 310 | -10/Materials | Build established: Mutant 404 | -10/Materials | Discovered new exit (range 9) 706 | -10/Materials | Discovered new exit (range 16) 807 | -10/Materials | Entered another Materials area 807 | -9/Materials | Evolved 2 slots: Utility x2 1121 | -9/Materials | Discovered new exit (range 3) 1609 | -9/Materials | Entered another Materials area 1609 | -8/Materials | Evolved 2 slots: Utility x2 2233 | -8/Materials | Discovered new exit (range 9) 2306 | -8/Materials | Identified exit to Garrison 2329 | -8/Materials | Entered Garrison 2359 | -8/Garrison | Build established: Hacker-Mutant 2389 | -8/Garrison | Triggered checkpoint 2426 | -8/Garrison | Garrison Relay disabled 2529 | -8/Garrison | Triggered checkpoint 2596 | -8/Garrison | Triggered checkpoint 2658 | -8/Garrison | Triggered checkpoint 2696 | -8/Garrison | Triggered checkpoint 2726 | -8/Garrison | Released all parts (6) 2727 | -8/Garrison | Core integrity fell below 50% 2757 | -8/Garrison | Lost 8 parts (2n2u4w) 2777 | -8/Garrison | Core integrity fell below 20% 2783 | -8/Garrison | Destroyed by Y-45 Defender with Beam Rifle Last Messages --------------- 02712_ Heat Sink destroyed. 02716_ Hvy. Assault Rifle destroyed. 02722_ D-53 Grenadier destroyed. 02724_ Shock Rifle destroyed. 02726_ Adv. Treads destroyed. 02726_ Critical hit (Burn: +37). 02726_ Released Assault Cannon. 02726_ Released Imp. Deuterium Engine. 02726_ Released Hacking Suite. 02726_ Released Lrg. Storage Unit. 02726_ Released Terrain Scan Processor. 02726_ Released Core Shielding. 02726_ Dropped Com. Battery. 02726_ Critical hit (Burn: +37). 02727_ Acquired Spear. 02767_ Slammed into G-50 Soldier. 02774_ Arm. Wheel destroyed. 02782_ G-47 Trooper suffers critical hit (Impale). 02782_ G-47 Trooper destroyed. Map ----- +----------------------------------------------------+ | ?????????????????????????????????????????????????? | | ?????????????????????????????????????????????????? | | ?????????????????????????????????????????????????? | | ?????????????????????????????????????????????????? | | ?????????????????????????????????????????????????? | | ?????????????????????????????????????????????????? | | ?????????????????????????????????????????????????? | | ?????????????????????????????????????????????????? | | ?????????????????????????????????????????????????? | | ?????????????????????????????????????????????????? | | ?????????????????????????????????????????????????? | | ?????????????????????????????????????????????????? | | ?????????????????????????????????????????????????? | | ?????????????????????????????????????????????????? | | ?????????????####????????????????????????????????? | | ?????????????#""#????????????????????????????????? | | ?????????????#T #????????????????????????????????? | | ?????????????#" #????????????????????????????????? | | ?????????????## #????????????????????????????????? | | ??????????????# #????????###?????????????????????? | | ??????????????# #??###### ##?????????????????????? | | ??????????????# #??# # # #?????????????????????? | | ??????????????# #### ## ##?????????????????????? | | ???######???### = # #?????????????????????? | | ???# #???# # ##### [ # #?????????????????????? | | ???# #???# !!#??# !=@ #?????????????????????? | | ???# #???# ! #??## ##Y#g#?????????????????????? | | ???### #???# ! #???# ##g###?????????????????????? | | ?????# #???# # #???# ## #???????????????????????? | | ?????# #???######### ## #???????????????????????? | | ?????# #?????# ## #???????????????????????? | | ?????# #?????# ######## #???????????????????????? | | ?????# #######"######## #######?????????????????? | | ?????# #?????????????????? | | ?????# ^^ #???##????????????? | | ?????############## ###+#### #??? ????????????? | | ??????????????????# #?? ???# #??? #????????????? | | ??????????????????# #?? ???# #??? #????????????? | | ??????????????????# #?? ???# #??? #????????????? | | ??????????????????# #?? ???# #??? #????#???????? | | ??????????????????# #?? ???# #### ##?? #???????? | | ??????????????????# #????### # =%*#? #???????? | | ??????????????????# #???## # # == ## ##??????? | | ??????????????????# ##### =* ######?? | | ??????????????????# = | | ??????????????????# | | ??????????????????####### ## ######?? | | ????????????????????????#### ###????? | | ?????????????????????????# =% #????? | | ?????????????????????????# ! [ #????? | +----------------------------------------------------+ Best States ------------- Heat Dissipation 41 Energy Generation 18 Energy Capacity 290 Matter Stores 337 Matter Capacity 500 Sight Range 16 Terrain Scan Range 16 Terrain Scan Density 85 Armor Coverage 150 Core Shielding 20 Evasion (%) 48 Recoil Reduction 2 Offensive Hacking 10 Defensive Hacking 10 Item Schematics ----------------- Cargo Storage Unit | -9/Materials | Hacked Robot Schematics ------------------ None Fabricated ------------ Nothing Repaired ---------- Nothing Studied --------- None Alien Tech Used ----------------- None Achievements -------------- None Challenges ------------ None Game ------ Seed AssemblyHardlightWeb Manual? 0 Play Time 00:27:43 Cumulative 55.7 hours Start 2026.01.08 @ 03:09:21 End 2026.01.08 @ 03:56:01 Sessions 1 Manual Loads 0 Difficulty Rogue Special Mode None Game No. 80 Rogue 80 Adventurer 0 Explorer 0 Win Type - Total 0 Types 0/0/0/0/0/0/0/0/0/0 Lore% 13 Gallery% 29 Achievement% 21 Wizard Run 0 Options --------- Layout 1 ASCII 0 Keyboard 0 Movement Mouse Keybinds 0 Fullscreen 2 Font 24/Smallcaps Map View 50x35 Zoom Use 2% Tactical HUD 1 Map Filters NONE Filters NONE Steam 1 RUN: 38eee8fd-266b-48a5-ada8-1dc3fb17e5da